[Event "Titled Tuesday Blitz June 21 Late 2022"]
[White "Nilsen, Tobias Lang"]
[Black "Kupervaser, Erez"]
[WhiteFideId "1521624"]
[BlackFideId "2814587"]
[WhiteElo "2014"]
[BlackElo "1832"]
[Result "1-0"]
[Round "03"]
[TimeControl "180+1"]
[Date "2022.06.22"]
[WhiteClock "0:00:09"]
[BlackClock "0:00:01"]

1. f4 {[%clk 0:03:00]}  e5 {[%clk 0:02:58]} 2. fxe5 {[%clk 0:03:01]}  d6 {[%clk 0:02:58]} 3. Nf3 {[%clk 0:03:02]}  Nc6 {[%clk 0:02:54]} 4. e4 {[%clk 0:03:02]}  dxe5 {[%clk 0:02:52]} 5. Bc4 {[%clk 0:03:01]}  Bc5 {[%clk 0:02:49]} 6. Qe2 {[%clk 0:03:02]}  Nf6 {[%clk 0:02:48]} 7. Bxf7+ {[%clk 0:03:00]}  Kf8 {[%clk 0:02:32]} 8. Bb3 {[%clk 0:02:59]}  Qe7 {[%clk 0:01:59]} 9. d3 {[%clk 0:02:56]}  Bg4 {[%clk 0:01:56]} 10. c3 {[%clk 0:02:55]}  Rd8 {[%clk 0:01:45]} 11. Bg5 {[%clk 0:02:52]}  Ke8 {[%clk 0:01:44]} 12. h3 {[%clk 0:02:50]}  Be6 {[%clk 0:01:42]} 13. Nbd2 {[%clk 0:02:49]}  Kd7 {[%clk 0:01:42]} 14. O-O-O {[%clk 0:02:46]}  Kc8 {[%clk 0:01:42]} 15. Rhf1 {[%clk 0:02:38]}  Rd7 {[%clk 0:01:34]} 16. Nc4 {[%clk 0:02:35]}  h6 {[%clk 0:01:26]} 17. Bh4 {[%clk 0:02:32]}  Bxc4 {[%clk 0:01:23]} 18. Bxc4 {[%clk 0:02:31]}  Na5 {[%clk 0:01:24]} 19. Bb5 {[%clk 0:02:23]}  Rd6 {[%clk 0:01:10]} 20. d4 {[%clk 0:02:07]}  exd4 {[%clk 0:01:04]} 21. cxd4 {[%clk 0:02:06]}  Rb6 {[%clk 0:00:56]} 22. dxc5 {[%clk 0:02:04]}  Qxc5+ {[%clk 0:00:55]} 23. Kb1 {[%clk 0:02:04]}  Qxb5 {[%clk 0:00:54]} 24. Qxb5 {[%clk 0:02:01]}  Rxb5 {[%clk 0:00:55]} 25. e5 {[%clk 0:01:49]}  Nd5 {[%clk 0:00:45]} 26. a4 {[%clk 0:01:43]}  Nc3+ {[%clk 0:00:35]} 27. Kc1 {[%clk 0:01:41]}  Nxd1 {[%clk 0:00:34]} 28. axb5 {[%clk 0:01:41]}  Ne3 {[%clk 0:00:34]} 29. Rf2 {[%clk 0:01:36]}  Re8 {[%clk 0:00:33]} 30. Re2 {[%clk 0:01:33]}  Nf5 {[%clk 0:00:33]} 31. Be1 {[%clk 0:01:29]}  Nc4 {[%clk 0:00:30]} 32. b3 {[%clk 0:01:26]}  Nb6 {[%clk 0:00:29]} 33. Kc2 {[%clk 0:01:24]}  Nd5 {[%clk 0:00:28]} 34. g3 {[%clk 0:01:20]}  g5 {[%clk 0:00:24]} 35. Kd3 {[%clk 0:01:17]}  Kd7 {[%clk 0:00:18]} 36. Ke4 {[%clk 0:01:15]}  Ke6 {[%clk 0:00:17]} 37. g4 {[%clk 0:01:10]}  Nfe7 {[%clk 0:00:16]} 38. Nd4+ {[%clk 0:01:06]}  Kd7 {[%clk 0:00:17]} 39. Nf5 {[%clk 0:01:05]}  Nf4 {[%clk 0:00:13]} 40. Rd2+ {[%clk 0:01:04]}  Kc8 {[%clk 0:00:13]} 41. Nxh6 {[%clk 0:00:52]}  Neg6 {[%clk 0:00:13]} 42. Nf7 {[%clk 0:00:44]}  b6 {[%clk 0:00:12]} 43. Kf5 {[%clk 0:00:26]}  Re7 {[%clk 0:00:12]} 44. e6 {[%clk 0:00:23]}  Rxe6 {[%clk 0:00:11]} 45. Rd8+ {[%clk 0:00:23]}  Kb7 {[%clk 0:00:11]} 46. Rg8 {[%clk 0:00:24]}  Ne7+ {[%clk 0:00:05]} 47. Kxg5 {[%clk 0:00:24]}  Nxg8 {[%clk 0:00:05]} 48. Nd8+ {[%clk 0:00:22]}  Kc8 {[%clk 0:00:05]} 49. Nxe6 {[%clk 0:00:23]}  Nxe6+ {[%clk 0:00:06]} 50. Kf5 {[%clk 0:00:23]}  Nd4+ {[%clk 0:00:06]} 51. Kg6 {[%clk 0:00:21]}  Nxb5 {[%clk 0:00:07]} 52. Bh4 {[%clk 0:00:21]}  Kd7 {[%clk 0:00:07]} 53. Bg5 {[%clk 0:00:21]}  Ke6 {[%clk 0:00:07]} 54. h4 {[%clk 0:00:21]}  Nd6 {[%clk 0:00:07]} 55. h5 {[%clk 0:00:21]}  Nf7 {[%clk 0:00:08]} 56. Bd2 {[%clk 0:00:20]}  Ne7+ {[%clk 0:00:06]} 57. Kg7 {[%clk 0:00:19]}  a5 {[%clk 0:00:03]} 58. g5 {[%clk 0:00:18]}  b5 {[%clk 0:00:02]} 59. h6 {[%clk 0:00:13]}  a4 {[%clk 0:00:03]} 60. bxa4 {[%clk 0:00:13]}  bxa4 {[%clk 0:00:03]} 61. h7 {[%clk 0:00:13]}  Nf5+ {[%clk 0:00:02]} 62. Kg6 {[%clk 0:00:13]}  a3 {[%clk 0:00:02]} 63. Bc3 {[%clk 0:00:13]}  a2 {[%clk 0:00:02]} 64. Kh5 {[%clk 0:00:09]}  c5 {[%clk 0:00:01]} 65. g6 {[%clk 0:00:09]} 1-0


[Site "https://www.chess.com"]

[Event "Titled Tuesday Blitz June 21 Late 2022"]
[White "Novikova, Galina"]
[Black "Gardezi, Arsal"]
[WhiteFideId "4157095"]
[BlackFideId "30949521"]
[WhiteElo "1863"]
[BlackElo "1781"]
[Result "1/2-1/2"]
[Round "03"]
[TimeControl "180+1"]
[Date "2022.06.22"]
[WhiteClock "0:00:45"]
[BlackClock "0:00:13"]

1. e4 {[%clk 0:03:00]}  e5 {[%clk 0:02:58]} 2. Nf3 {[%clk 0:03:01]}  Nc6 {[%clk 0:02:58]} 3. d4 {[%clk 0:03:01]}  exd4 {[%clk 0:02:58]} 4. Nxd4 {[%clk 0:03:02]}  Bc5 {[%clk 0:02:56]} 5. Nb3 {[%clk 0:03:02]}  Bb6 {[%clk 0:02:56]} 6. Nc3 {[%clk 0:03:03]}  Nf6 {[%clk 0:02:53]} 7. Qe2 {[%clk 0:03:04]}  O-O {[%clk 0:02:53]} 8. Be3 {[%clk 0:03:04]}  d5 {[%clk 0:02:48]} 9. O-O-O {[%clk 0:03:04]}  Qe7 {[%clk 0:02:12]} 10. exd5 {[%clk 0:02:56]}  Bg4 {[%clk 0:02:11]} 11. f3 {[%clk 0:02:45]}  Qxe3+ {[%clk 0:01:56]} 12. Qxe3 {[%clk 0:02:43]}  Bxe3+ {[%clk 0:01:55]} 13. Kb1 {[%clk 0:02:44]}  Bxf3 {[%clk 0:01:54]} 14. gxf3 {[%clk 0:02:45]}  Ne7 {[%clk 0:01:45]} 15. d6 {[%clk 0:02:44]}  cxd6 {[%clk 0:01:44]} 16. Rxd6 {[%clk 0:02:44]}  Nf5 {[%clk 0:01:44]} 17. Rd1 {[%clk 0:02:41]}  Rad8 {[%clk 0:01:42]} 18. Bd3 {[%clk 0:02:42]}  Nd4 {[%clk 0:01:39]} 19. Nxd4 {[%clk 0:02:37]}  Bxd4 {[%clk 0:01:39]} 20. Ne4 {[%clk 0:02:35]}  Nxe4 {[%clk 0:01:38]} 21. fxe4 {[%clk 0:02:36]}  g6 {[%clk 0:01:38]} 22. h4 {[%clk 0:02:35]}  h5 {[%clk 0:01:36]} 23. Rhf1 {[%clk 0:02:34]}  Kh7 {[%clk 0:01:33]} 24. Bc4 {[%clk 0:02:34]}  Kg7 {[%clk 0:01:28]} 25. c3 {[%clk 0:02:33]}  Bf6 {[%clk 0:01:28]} 26. Rxd8 {[%clk 0:02:32]}  Rxd8 {[%clk 0:01:29]} 27. e5 {[%clk 0:02:33]}  Bxe5 {[%clk 0:01:24]} 28. Rxf7+ {[%clk 0:02:34]}  Kh6 {[%clk 0:01:16]} 29. Rxb7 {[%clk 0:02:35]}  Bb8 {[%clk 0:01:05]} 30. b4 {[%clk 0:02:29]}  g5 {[%clk 0:00:59]} 31. hxg5+ {[%clk 0:02:27]}  Kxg5 {[%clk 0:01:00]} 32. a4 {[%clk 0:02:13]}  h4 {[%clk 0:00:50]} 33. Be6 {[%clk 0:02:13]}  Kf4 {[%clk 0:00:43]} 34. Kc2 {[%clk 0:02:12]}  Kg3 {[%clk 0:00:39]} 35. Rg7+ {[%clk 0:02:12]}  Kh2 {[%clk 0:00:38]} 36. Rh7 {[%clk 0:02:12]}  Kg3 {[%clk 0:00:33]} 37. c4 {[%clk 0:02:09]}  Re8 {[%clk 0:00:31]} 38. Bd7 {[%clk 0:02:07]}  Rf8 {[%clk 0:00:24]} 39. c5 {[%clk 0:02:06]}  Rf4 {[%clk 0:00:17]} 40. Kb3 {[%clk 0:02:03]}  Rf3+ {[%clk 0:00:17]} 41. Kc4 {[%clk 0:02:03]}  Bf4 {[%clk 0:00:13]} 42. c6 {[%clk 0:02:01]}  Rf1 {[%clk 0:00:12]} 43. b5 {[%clk 0:01:59]}  Rc1+ {[%clk 0:00:11]} 44. Kd5 {[%clk 0:02:00]}  Rd1+ {[%clk 0:00:11]} 45. Ke6 {[%clk 0:02:00]}  h3 {[%clk 0:00:11]} 46. Rg7+ {[%clk 0:01:53]}  Kf2 {[%clk 0:00:11]} 47. Rh7 {[%clk 0:01:43]}  h2 {[%clk 0:00:11]} 48. Kf5 {[%clk 0:01:37]}  Bc7 {[%clk 0:00:10]} 49. a5 {[%clk 0:00:42]}  h1=Q {[%clk 0:00:10]} 50. Rxh1 {[%clk 0:00:43]}  Rxh1 {[%clk 0:00:10]} 51. b6 {[%clk 0:00:43]}  axb6 {[%clk 0:00:10]} 52. a6 {[%clk 0:00:43]}  Ra1 {[%clk 0:00:10]} 53. Bc8 {[%clk 0:00:44]}  b5 {[%clk 0:00:10]} 54. Bb7 {[%clk 0:00:45]}  b4 {[%clk 0:00:10]} 55. Ke6 {[%clk 0:00:46]}  b3 {[%clk 0:00:11]} 56. Kd7 {[%clk 0:00:46]}  b2 {[%clk 0:00:11]} 57. Kxc7 {[%clk 0:00:46]}  b1=Q {[%clk 0:00:12]} 58. Kd7 {[%clk 0:00:46]}  Qh7+ {[%clk 0:00:12]} 59. Kc8 {[%clk 0:00:46]}  Rg1 {[%clk 0:00:12]} 60. Kb8 {[%clk 0:00:45]}  Rg8+ {[%clk 0:00:12]} 61. Ka7 {[%clk 0:00:45]}  Qc7 {[%clk 0:00:13]} 1/2-1/2


[Site "https://www.chess.com"]

[Event "Titled Tuesday Blitz June 21 Late 2022"]
[White "Pakleza, Zbigniew"]
[Black "Oparin, Grigoriy"]
[WhiteFideId "1119290"]
[BlackFideId "24125890"]
[WhiteElo "2467"]
[BlackElo "2639"]
[Result "1/2-1/2"]
[Round "03"]
[TimeControl "180+1"]
[Date "2022.06.21"]
[WhiteClock "0:00:29"]
[BlackClock "0:01:44"]

1. d4 {[%clk 0:03:00]}  Nf6 {[%clk 0:02:59]} 2. Nf3 {[%clk 0:03:01]}  g6 {[%clk 0:02:59]} 3. Bf4 {[%clk 0:03:01]}  Bg7 {[%clk 0:02:59]} 4. e3 {[%clk 0:03:02]}  O-O {[%clk 0:03:00]} 5. Be2 {[%clk 0:03:02]}  c5 {[%clk 0:03:00]} 6. c3 {[%clk 0:03:02]}  Qb6 {[%clk 0:03:00]} 7. Qb3 {[%clk 0:03:03]}  cxd4 {[%clk 0:02:58]} 8. Qxb6 {[%clk 0:03:01]}  axb6 {[%clk 0:02:59]} 9. exd4 {[%clk 0:03:01]}  d6 {[%clk 0:02:58]} 10. Nbd2 {[%clk 0:03:00]}  Be6 {[%clk 0:02:58]} 11. a3 {[%clk 0:02:57]}  Nc6 {[%clk 0:02:57]} 12. O-O {[%clk 0:02:56]}  Na5 {[%clk 0:02:57]} 13. Rfe1 {[%clk 0:02:55]}  Rfe8 {[%clk 0:02:53]} 14. h3 {[%clk 0:02:55]}  Nb3 {[%clk 0:02:52]} 15. Nxb3 {[%clk 0:02:55]}  Bxb3 {[%clk 0:02:53]} 16. Nd2 {[%clk 0:02:51]}  Bd5 {[%clk 0:02:52]} 17. Bf3 {[%clk 0:02:51]}  Bxf3 {[%clk 0:02:52]} 18. Nxf3 {[%clk 0:02:52]}  b5 {[%clk 0:02:50]} 19. Rad1 {[%clk 0:02:39]}  Nd5 {[%clk 0:02:50]} 20. Bc1 {[%clk 0:02:39]}  h6 {[%clk 0:02:47]} 21. Kf1 {[%clk 0:02:39]}  f5 {[%clk 0:02:43]} 22. g4 {[%clk 0:02:24]}  e6 {[%clk 0:02:43]} 23. Kg2 {[%clk 0:02:20]}  Kf7 {[%clk 0:02:43]} 24. Re2 {[%clk 0:02:19]}  Re7 {[%clk 0:02:43]} 25. Rde1 {[%clk 0:02:18]}  Rae8 {[%clk 0:02:43]} 26. Rd1 {[%clk 0:02:08]}  Nb6 {[%clk 0:02:39]} 27. Ne1 {[%clk 0:01:50]}  Nd5 {[%clk 0:02:30]} 28. Nd3 {[%clk 0:01:43]}  g5 {[%clk 0:02:30]} 29. f4 {[%clk 0:01:19]}  Bf6 {[%clk 0:02:30]} 30. Kf3 {[%clk 0:01:12]}  Kg6 {[%clk 0:02:24]} 31. Rg1 {[%clk 0:01:06]}  Rf8 {[%clk 0:02:15]} 32. gxf5+ {[%clk 0:00:59]}  exf5 {[%clk 0:02:14]} 33. Rxe7 {[%clk 0:00:53]}  Bxe7 {[%clk 0:02:13]} 34. fxg5 {[%clk 0:00:51]}  hxg5 {[%clk 0:02:13]} 35. Bxg5 {[%clk 0:00:49]}  Bxg5 {[%clk 0:02:14]} 36. h4 {[%clk 0:00:49]}  Rh8 {[%clk 0:02:10]} 37. Rxg5+ {[%clk 0:00:42]}  Kf6 {[%clk 0:02:11]} 38. Kg3 {[%clk 0:00:42]}  Re8 {[%clk 0:02:08]} 39. Nf4 {[%clk 0:00:32]}  Nxf4 {[%clk 0:02:08]} 40. Kxf4 {[%clk 0:00:32]}  Re4+ {[%clk 0:02:08]} 41. Kg3 {[%clk 0:00:32]}  Re2 {[%clk 0:02:08]} 42. Rh5 {[%clk 0:00:28]}  Kg6 {[%clk 0:01:55]} 43. Rg5+ {[%clk 0:00:28]}  Kf6 {[%clk 0:01:55]} 44. Rh5 {[%clk 0:00:29]}  Kg6 {[%clk 0:01:43]} 45. Rg5+ {[%clk 0:00:29]}  Kf6 {[%clk 0:01:44]} 1/2-1/2


[Site "https://www.chess.com"]

[Event "Titled Tuesday Blitz June 21 Late 2022"]
[White "Pappelis, Dimitrios"]
[Black "Zhurbinsky, David"]
[WhiteFideId "4215281"]
[BlackFideId "2072904"]
[WhiteElo "1998"]
[BlackElo "2544"]
[Result "0-1"]
[Round "03"]
[TimeControl "180+1"]
[Date "2022.06.22"]
[WhiteClock "0:00:08"]
[BlackClock "0:00:07"]

1. d4 {[%clk 0:03:00]}  Nf6 {[%clk 0:02:59]} 2. Nf3 {[%clk 0:02:59]}  e6 {[%clk 0:03:00]} 3. c4 {[%clk 0:02:53]}  Bb4+ {[%clk 0:02:59]} 4. Nc3 {[%clk 0:02:51]}  O-O {[%clk 0:02:58]} 5. e3 {[%clk 0:02:49]}  d6 {[%clk 0:02:56]} 6. Bd3 {[%clk 0:02:44]}  Nbd7 {[%clk 0:02:54]} 7. Bd2 {[%clk 0:02:40]}  e5 {[%clk 0:02:52]} 8. Bc2 {[%clk 0:02:22]}  Qe7 {[%clk 0:02:44]} 9. a3 {[%clk 0:02:17]}  Bxc3 {[%clk 0:02:39]} 10. Bxc3 {[%clk 0:02:18]}  a5 {[%clk 0:02:36]} 11. O-O {[%clk 0:02:11]}  b6 {[%clk 0:02:34]} 12. b4 {[%clk 0:02:03]}  Bb7 {[%clk 0:02:31]} 13. d5 {[%clk 0:01:59]}  axb4 {[%clk 0:02:25]} 14. axb4 {[%clk 0:01:59]}  b5 {[%clk 0:02:15]} 15. Bb3 {[%clk 0:01:34]}  Rxa1 {[%clk 0:02:02]} 16. Bxa1 {[%clk 0:01:25]}  bxc4 {[%clk 0:01:50]} 17. Bxc4 {[%clk 0:01:25]}  Nb6 {[%clk 0:01:50]} 18. Bb3 {[%clk 0:01:19]}  Nfxd5 {[%clk 0:01:44]} 19. Qd2 {[%clk 0:01:11]}  Kh8 {[%clk 0:01:30]} 20. Bb2 {[%clk 0:01:11]}  f5 {[%clk 0:01:22]} 21. Rc1 {[%clk 0:01:10]}  f4 {[%clk 0:01:14]} 22. e4 {[%clk 0:01:10]}  Nf6 {[%clk 0:01:11]} 23. Qc2 {[%clk 0:00:54]}  Na8 {[%clk 0:00:26]} 24. Ng5 {[%clk 0:00:52]}  h6 {[%clk 0:00:25]} 25. Ne6 {[%clk 0:00:48]}  Bxe4 {[%clk 0:00:19]} 26. Qe2 {[%clk 0:00:33]}  Rb8 {[%clk 0:00:16]} 27. Bc3 {[%clk 0:00:23]}  Bd5 {[%clk 0:00:16]} 28. Nxf4 {[%clk 0:00:19]}  Bf7 {[%clk 0:00:05]} 29. Bxf7 {[%clk 0:00:19]}  Qxf7 {[%clk 0:00:06]} 30. Nd3 {[%clk 0:00:18]}  Nb6 {[%clk 0:00:06]} 31. b5 {[%clk 0:00:13]}  Nbd5 {[%clk 0:00:06]} 32. Ba1 {[%clk 0:00:13]}  Qg6 {[%clk 0:00:06]} 33. g3 {[%clk 0:00:11]}  e4 {[%clk 0:00:06]} 34. Ne1 {[%clk 0:00:09]}  Nf4 {[%clk 0:00:06]} 35. Qe3 {[%clk 0:00:09]}  N6d5 {[%clk 0:00:06]} 36. Qd4 {[%clk 0:00:08]}  Ne2+ {[%clk 0:00:06]} 37. Kf1 {[%clk 0:00:08]}  Nxd4 {[%clk 0:00:07]} 38. Bxd4 {[%clk 0:00:08]}  Rxb5 {[%clk 0:00:07]} 39. Ng2 {[%clk 0:00:07]}  c5 {[%clk 0:00:05]} 40. Ba1 {[%clk 0:00:06]}  Ra5 {[%clk 0:00:05]} 41. Nh4 {[%clk 0:00:06]}  Qf7 {[%clk 0:00:05]} 42. Bb2 {[%clk 0:00:07]}  Ne3+ {[%clk 0:00:05]} 43. Ke2 {[%clk 0:00:07]}  Ng4 {[%clk 0:00:06]} 44. f4 {[%clk 0:00:06]}  exf3+ {[%clk 0:00:06]} 45. Kf1 {[%clk 0:00:07]}  Ra2 {[%clk 0:00:06]} 46. Bc3 {[%clk 0:00:07]}  Qc4+ {[%clk 0:00:06]} 47. Kg1 {[%clk 0:00:08]}  Qxc3 {[%clk 0:00:06]} 48. Rxc3 {[%clk 0:00:08]}  Ra1+ {[%clk 0:00:07]} 0-1


[Site "https://www.chess.com"]

[Event "Titled Tuesday Blitz June 21 Late 2022"]
[White "Paravyan, David"]
[Black "Lamaze, Simon"]
[WhiteFideId "4194985"]
[BlackFideId "36069264"]
[WhiteElo "2569"]
[BlackElo "2090"]
[Result "1-0"]
[Round "03"]
[TimeControl "180+1"]
[Date "2022.06.21"]
[WhiteClock "0:02:47"]
[BlackClock "0:02:01"]

1. e4 {[%clk 0:03:00]}  c5 {[%clk 0:02:59]} 2. Nf3 {[%clk 0:03:00]}  Nc6 {[%clk 0:03:00]} 3. d4 {[%clk 0:02:58]}  cxd4 {[%clk 0:03:01]} 4. Nxd4 {[%clk 0:02:58]}  Nf6 {[%clk 0:03:02]} 5. Nc3 {[%clk 0:02:58]}  d6 {[%clk 0:03:02]} 6. Bg5 {[%clk 0:02:58]}  e6 {[%clk 0:03:02]} 7. Qd2 {[%clk 0:02:57]}  a6 {[%clk 0:03:01]} 8. Nxc6 {[%clk 0:02:58]}  bxc6 {[%clk 0:03:01]} 9. O-O-O {[%clk 0:02:58]}  Be7 {[%clk 0:03:00]} 10. Bxf6 {[%clk 0:02:58]}  gxf6 {[%clk 0:03:00]} 11. Bc4 {[%clk 0:02:57]}  Bb7 {[%clk 0:03:01]} 12. Rhe1 {[%clk 0:02:57]}  Qa5 {[%clk 0:02:49]} 13. Kb1 {[%clk 0:02:56]}  Rb8 {[%clk 0:02:47]} 14. Bb3 {[%clk 0:02:54]}  h5 {[%clk 0:02:44]} 15. f4 {[%clk 0:02:53]}  Qb4 {[%clk 0:02:35]} 16. f5 {[%clk 0:02:51]}  e5 {[%clk 0:02:31]} 17. Qe3 {[%clk 0:02:50]}  Qa5 {[%clk 0:02:19]} 18. Qg3 {[%clk 0:02:50]}  Bf8 {[%clk 0:02:14]} 19. Qh4 {[%clk 0:02:49]}  Bg7 {[%clk 0:02:01]} 20. Rxd6 {[%clk 0:02:47]} 1-0


[Site "https://www.chess.com"]

[Event "Titled Tuesday Blitz June 21 Late 2022"]
[White "Peatman, Carter"]
[Black "Adla, Diego"]
[WhiteFideId "2096480"]
[BlackFideId "100072"]
[WhiteElo "2475"]
[BlackElo "2377"]
[Result "0-1"]
[Round "03"]
[TimeControl "180+1"]
[Date "2022.06.22"]
[WhiteClock "0:00:01"]
[BlackClock "0:00:02"]

1. d4 {[%clk 0:03:00]}  Nf6 {[%clk 0:02:52]} 2. Bf4 {[%clk 0:02:59]}  e6 {[%clk 0:02:49]} 3. e3 {[%clk 0:02:57]}  b6 {[%clk 0:02:48]} 4. Nf3 {[%clk 0:02:55]}  Bb7 {[%clk 0:02:46]} 5. h3 {[%clk 0:02:53]}  Be7 {[%clk 0:02:44]} 6. Be2 {[%clk 0:02:52]}  c5 {[%clk 0:02:43]} 7. O-O {[%clk 0:02:50]}  cxd4 {[%clk 0:02:43]} 8. exd4 {[%clk 0:02:51]}  O-O {[%clk 0:02:42]} 9. c3 {[%clk 0:02:48]}  d6 {[%clk 0:02:42]} 10. Bh2 {[%clk 0:02:48]}  Nbd7 {[%clk 0:02:41]} 11. Nbd2 {[%clk 0:02:47]}  Qc7 {[%clk 0:02:41]} 12. a4 {[%clk 0:02:47]}  a6 {[%clk 0:02:40]} 13. Re1 {[%clk 0:02:24]}  Rfe8 {[%clk 0:02:28]} 14. Nc4 {[%clk 0:02:17]}  Bf8 {[%clk 0:02:25]} 15. Nfd2 {[%clk 0:02:15]}  Rad8 {[%clk 0:02:18]} 16. Bf3 {[%clk 0:02:03]}  Bc6 {[%clk 0:01:59]} 17. Qb3 {[%clk 0:01:31]}  Bxf3 {[%clk 0:01:20]} 18. Nxf3 {[%clk 0:01:32]}  Rc8 {[%clk 0:01:20]} 19. Ne3 {[%clk 0:01:23]}  Qb7 {[%clk 0:01:12]} 20. Nd2 {[%clk 0:01:16]}  e5 {[%clk 0:00:40]} 21. Nec4 {[%clk 0:00:39]}  exd4 {[%clk 0:00:20]} 22. cxd4 {[%clk 0:00:28]}  Rxe1+ {[%clk 0:00:19]} 23. Rxe1 {[%clk 0:00:27]}  Qd5 {[%clk 0:00:19]} 24. Ne3 {[%clk 0:00:10]}  Qxb3 {[%clk 0:00:18]} 25. Nxb3 {[%clk 0:00:11]}  d5 {[%clk 0:00:15]} 26. Rd1 {[%clk 0:00:04]}  a5 {[%clk 0:00:14]} 27. Nd2 {[%clk 0:00:03]}  Bb4 {[%clk 0:00:13]} 28. Nf3 {[%clk 0:00:02]}  g6 {[%clk 0:00:12]} 29. Ne5 {[%clk 0:00:02]}  Nf8 {[%clk 0:00:10]} 30. N5g4 {[%clk 0:00:02]}  Nxg4 {[%clk 0:00:10]} 31. Nxg4 {[%clk 0:00:03]}  Ne6 {[%clk 0:00:07]} 32. Ne5 {[%clk 0:00:03]}  Rc2 {[%clk 0:00:04]} 33. Bg3 {[%clk 0:00:02]}  Rxb2 {[%clk 0:00:04]} 34. Nd7 {[%clk 0:00:02]}  h5 {[%clk 0:00:03]} 35. Nxb6 {[%clk 0:00:01]}  Ra2 {[%clk 0:00:02]} 36. Nxd5 {[%clk 0:00:02]}  Rxa4 {[%clk 0:00:03]} 37. Nf6+ {[%clk 0:00:01]}  Kf8 {[%clk 0:00:02]} 0-1


[Site "https://www.chess.com"]

[Event "Titled Tuesday Blitz June 21 Late 2022"]
[White "Prieto Aranguren, Alain"]
[Black "Navarrete Mendez, Gonzalo Alberto"]
[WhiteFideId "2268906"]
[BlackFideId "5106850"]
[WhiteElo "2224"]
[BlackElo "2261"]
[Result "0-1"]
[Round "03"]
[TimeControl "180+1"]
[Date "2022.06.22"]
[WhiteClock "0:01:24"]
[BlackClock "0:01:31"]

1. d4 {[%clk 0:02:58]}  d5 {[%clk 0:02:59]} 2. c4 {[%clk 0:02:58]}  dxc4 {[%clk 0:03:00]} 3. e3 {[%clk 0:02:57]}  Nc6 {[%clk 0:03:00]} 4. Bxc4 {[%clk 0:02:57]}  e5 {[%clk 0:03:01]} 5. Nf3 {[%clk 0:02:49]}  e4 {[%clk 0:03:00]} 6. Nfd2 {[%clk 0:02:45]}  Qg5 {[%clk 0:03:00]} 7. Bf1 {[%clk 0:02:40]}  Nf6 {[%clk 0:02:58]} 8. Nc3 {[%clk 0:02:40]}  Bf5 {[%clk 0:02:55]} 9. Qb3 {[%clk 0:02:37]}  O-O-O {[%clk 0:02:54]} 10. Nc4 {[%clk 0:02:28]}  h5 {[%clk 0:02:34]} 11. Bd2 {[%clk 0:02:28]}  Ng4 {[%clk 0:02:24]} 12. Rc1 {[%clk 0:02:23]}  Qh4 {[%clk 0:02:01]} 13. g3 {[%clk 0:02:22]}  Qf6 {[%clk 0:02:01]} 14. Bg2 {[%clk 0:02:19]}  h4 {[%clk 0:01:46]} 15. h3 {[%clk 0:01:47]}  Nxf2 {[%clk 0:01:40]} 16. Kxf2 {[%clk 0:01:44]}  Bxh3+ {[%clk 0:01:36]} 17. Kg1 {[%clk 0:01:40]}  Bxg2 {[%clk 0:01:37]} 18. Kxg2 {[%clk 0:01:28]}  Qf3+ {[%clk 0:01:36]} 19. Kg1 {[%clk 0:01:28]}  hxg3 {[%clk 0:01:29]} 20. Rxh8 {[%clk 0:01:24]}  Qf2+ {[%clk 0:01:29]} 21. Kh1 {[%clk 0:01:24]}  g2+ {[%clk 0:01:30]} 22. Kh2 {[%clk 0:01:24]}  g1=Q+ {[%clk 0:01:30]} 23. Kh3 {[%clk 0:01:24]}  Qfg3# {[%clk 0:01:31]} 0-1


[Site "https://www.chess.com"]

[Event "Titled Tuesday Blitz June 21 Late 2022"]
[White "Roman, Rodrigo"]
[Black "Romanchuk, Viktor"]
[WhiteFideId "3701220"]
[BlackFideId "14109271"]
[WhiteElo "2001"]
[BlackElo "2242"]
[Result "1/2-1/2"]
[Round "03"]
[TimeControl "180+1"]
[Date "2022.06.22"]
[WhiteClock "0:01:02"]
[BlackClock "0:01:08"]

1. e4 {[%clk 0:03:00]}  e6 {[%clk 0:02:59]} 2. d4 {[%clk 0:02:54]}  d5 {[%clk 0:02:58]} 3. Nc3 {[%clk 0:02:55]}  dxe4 {[%clk 0:02:57]} 4. Nxe4 {[%clk 0:02:56]}  Nd7 {[%clk 0:02:57]} 5. Nf3 {[%clk 0:02:55]}  Ngf6 {[%clk 0:02:58]} 6. Bg5 {[%clk 0:02:52]}  h6 {[%clk 0:02:57]} 7. Bxf6 {[%clk 0:02:52]}  Nxf6 {[%clk 0:02:58]} 8. Bd3 {[%clk 0:02:52]}  Nxe4 {[%clk 0:02:58]} 9. Bxe4 {[%clk 0:02:52]}  c5 {[%clk 0:02:59]} 10. O-O {[%clk 0:02:46]}  cxd4 {[%clk 0:02:57]} 11. Nxd4 {[%clk 0:02:46]}  Bc5 {[%clk 0:02:56]} 12. Nb5 {[%clk 0:02:45]}  Qxd1 {[%clk 0:02:53]} 13. Raxd1 {[%clk 0:02:38]}  Ke7 {[%clk 0:02:53]} 14. Rfe1 {[%clk 0:02:37]}  Rd8 {[%clk 0:02:52]} 15. c3 {[%clk 0:02:29]}  Bd7 {[%clk 0:02:36]} 16. Nd4 {[%clk 0:02:18]}  Rab8 {[%clk 0:02:30]} 17. b4 {[%clk 0:02:17]}  Bxd4 {[%clk 0:02:22]} 18. Rxd4 {[%clk 0:02:17]}  Be8 {[%clk 0:02:23]} 19. Rxd8 {[%clk 0:02:14]}  Kxd8 {[%clk 0:02:24]} 20. Rd1+ {[%clk 0:02:14]}  Kc7 {[%clk 0:02:24]} 21. c4 {[%clk 0:02:13]}  b6 {[%clk 0:02:23]} 22. Kf1 {[%clk 0:02:09]}  Rd8 {[%clk 0:02:20]} 23. Rxd8 {[%clk 0:02:09]}  Kxd8 {[%clk 0:02:21]} 24. Ke2 {[%clk 0:02:10]}  Kc7 {[%clk 0:02:21]} 25. Kd3 {[%clk 0:02:09]}  Kd6 {[%clk 0:02:17]} 26. f4 {[%clk 0:02:09]}  e5 {[%clk 0:02:17]} 27. g3 {[%clk 0:02:03]}  f6 {[%clk 0:02:15]} 28. h4 {[%clk 0:02:03]}  exf4 {[%clk 0:02:09]} 29. gxf4 {[%clk 0:02:03]}  g5 {[%clk 0:02:09]} 30. fxg5 {[%clk 0:02:03]}  fxg5 {[%clk 0:02:09]} 31. hxg5 {[%clk 0:02:02]}  hxg5 {[%clk 0:02:10]} 32. Kd4 {[%clk 0:02:00]}  Bd7 {[%clk 0:02:09]} 33. c5+ {[%clk 0:02:00]}  bxc5+ {[%clk 0:02:09]} 34. bxc5+ {[%clk 0:02:01]}  Kc7 {[%clk 0:02:09]} 35. Ke5 {[%clk 0:01:59]}  Bc6 {[%clk 0:02:06]} 36. Bf5 {[%clk 0:01:57]}  Bd7 {[%clk 0:02:06]} 37. Be4 {[%clk 0:01:58]}  Bc8 {[%clk 0:02:03]} 38. Bf5 {[%clk 0:01:08]}  Bxf5 {[%clk 0:01:11]} 39. Kxf5 {[%clk 0:01:09]}  Kc6 {[%clk 0:01:11]} 40. Kxg5 {[%clk 0:01:09]}  Kxc5 {[%clk 0:01:10]} 41. Kf4 {[%clk 0:01:09]}  Kd4 {[%clk 0:01:10]} 42. Kf3 {[%clk 0:01:06]}  Kd3 {[%clk 0:01:10]} 43. Kf4 {[%clk 0:01:07]}  a5 {[%clk 0:01:10]} 44. a4 {[%clk 0:01:06]}  Kc3 {[%clk 0:01:08]} 45. Ke3 {[%clk 0:01:06]}  Kb3 {[%clk 0:01:08]} 46. Kd3 {[%clk 0:01:07]}  Kxa4 {[%clk 0:01:08]} 47. Kc4 {[%clk 0:01:07]}  Ka3 {[%clk 0:01:08]} 48. Kc3 {[%clk 0:01:08]}  a4 {[%clk 0:01:08]} 49. Kc2 {[%clk 0:01:02]} 1/2-1/2


[Site "https://www.chess.com"]